bitfinex/quotes_SOLUSD_20250210
["timestamp","ask_amount","ask_price","bid_price","bid_amount"]
[1739200592836,30.1722738,205.97,205.9,18.44876874]
[1739200593225,35.0273738,205.97,205.92,13.59206874]
[1739200593542,30.1722738,205.97,205.96,13.59206874]
[1739200595434,30.1722738,205.97,205.94,13.59206874]
[1739200596123,30.1722738,205.97,205.92,13.59206874]
[1739200597031,30.1722738,205.97,205.94,13.59206874]
[1739200597424,30.1722738,205.97,205.93,13.59206874]
[1739200598022,30.1722738,205.97,205.94,13.59206874]
[1739200598221,30.1722738,205.97,205.96,13.59206874]
[1739200599049,30.1722738,205.97,205.95,13.59206874]
[1739200599931,30.1722738,205.97,205.96,13.59206874]
[1739200601142,0.03,205.97,205.96,18.44736874]
[1739200602460,0.03,205.97,205.95,135.0]
[1739200603331,0.03,205.97,205.96,13.59206874]
[1739200604033,0.03,205.97,205.92,13.59206874]
[1739200604332,0.03,205.97,205.95,10.0]
[1739200604540,4.885,205.97,205.95,10.0]
[1739200604932,0.91041729,205.96,205.95,10.0]
[1739200605333,14.50248603,205.96,205.95,10.0]
[1739200605535,27.91433456,205.96,205.95,10.0]
[1739200605822,27.91433456,205.96,205.95,20.0]
[1739200607153,38.80393456,205.96,205.95,20.0]
[1739200609053,13.41184853,205.95,205.88,13.59206874]
[1739200609440,25.39208603,205.96,205.88,18.44906874]
[1739200609764,13.59206874,205.94,205.86,13.59206874]
[1739200609932,13.59206874,205.92,205.84,13.59206874]
[1739200610131,0.91070933,205.91,205.84,13.59206874]
[1739200611058,18.44876874,205.9,205.82,148.59206874]
[1739200611260,0.91083824,205.89,205.82,148.59206874]
[1739200611558,13.59206874,205.88,205.81,0.063]
[1739200611771,0.91088359,205.87,205.81,0.063]
[1739200611936,0.91088359,205.87,205.84,10.0]
[1739200612258,0.9108724,205.89,205.84,10.0]
[1739200613157,4.8571,205.88,205.84,10.0]
[1739200614646,0.9108724,205.89,205.84,10.0]
[1739200615055,5.7678724,205.89,205.84,10.0]
[1739200615243,13.41184853,205.92,205.84,33.59206874]
[1739200615244,0.9108437,205.91,205.84,33.59206874]
[1739200615443,0.9108437,205.89,205.84,33.59206874]
[1739200615851,4.8567,205.9,205.84,33.59206874]
[1739200616042,0.91078697,205.89,205.84,33.59206874]
[1739200616650,5.76751666,205.9,205.84,33.59206874]
[1739200617659,0.91075062,205.91,205.86,13.59206874]
[1739200618170,5.76725062,205.91,205.84,33.59206874]
[1739200619066,13.59206874,205.88,205.84,20.0]
[1739200619371,0.91090184,205.87,205.84,20.0]
[1739200620870,13.41184853,205.85,205.84,20.0]
[1739200621049,0.9110667,205.85,205.84,20.0]
[1739200621250,20.0,205.85,205.84,20.0]
[1739200621862,0.91093572,205.87,205.84,20.0]
[1739200622067,1.5867,205.88,205.84,20.0]
[1739200622375,5.76790068,205.89,205.84,20.0]
[1739200623461,27.00391727,205.88,205.84,20.0]
[1739200623772,13.41184853,205.85,205.84,20.0]
[1739200623952,14.32290625,205.85,205.84,20.0]
[1739200624345,0.91105772,205.85,205.84,20.0]
[1739200625470,13.59206874,205.86,205.84,20.0]
[1739200625471,0.91098608,205.91,205.84,33.59206874]
[1739200625671,7.2277724,205.92,205.87,13.59206874]
[1739200625863,6.317,205.92,205.87,13.59206874]
[1739200626072,35.91599922,205.93,205.87,13.59206874]
[1739200627176,31.05979922,205.93,205.87,18.44946874]
[1739200627469,31.05979922,205.93,205.87,13.59206874]
[1739200627662,35.91579922,205.93,205.87,13.59206874]
[1739200628570,30.14909851,205.93,205.9,13.59206874]
[1739200628773,30.14909851,205.93,205.92,13.59206874]
[1739200630973,30.14909851,205.93,205.92,18.44826874]
[1739200631478,30.14909851,205.93,205.92,28.44826874]
[1739200631677,0.03,205.96,205.92,28.44826874]
[1739200631876,0.03,205.96,205.95,13.59206874]
[1739200632977,0.03,205.96,205.95,18.44756874]
[1739200634483,0.03,205.96,205.95,148.59206874]
[1739200634788,0.03,205.96,205.95,135.0]
[1739200635361,0.03,205.96,205.95,148.59206874]
[1739200635678,0.03,205.96,205.95,135.0]
[1739200636064,0.03,205.96,205.92,23.59206874]
[1739200636265,13.62206874,205.96,205.92,10.0]
[1739200636469,14.502617,205.95,205.92,10.0]
[1739200636678,13.59206874,205.93,205.92,10.0]
[1739200636861,27.91460992,205.93,205.92,10.0]
[1739200637575,28.80635673,205.93,205.92,3.76]
[1739200637787,20.0,205.9,205.87,10.0]
[1739200637984,27.00391727,205.88,205.87,10.0]
[1739200638286,27.00391727,205.88,205.87,7.91196621]
[1739200638493,27.00391727,205.88,205.84,20.063]
[1739200638667,27.00391727,205.85,205.84,20.063]
[1739200638865,27.91503213,205.85,205.84,20.063]
[1739200641884,0.91106503,205.86,205.84,30.063]
[1739200642076,0.89174681,205.88,205.84,30.063]
[1739200642902,0.89174681,205.88,205.84,43.65506874]
[1739200643388,13.59206874,205.95,205.86,13.59206874]
[1739200643698,0.91067808,205.94,205.86,13.59206874]
[1739200643997,0.94055684,205.96,205.9,13.59206874]
[1739200644369,5.79585684,205.96,205.9,13.59206874]
[1739200644764,13.59206874,205.93,205.86,13.59206874]
[1739200644981,0.91073962,205.92,205.86,10.0]
[1739200646901,5.76703962,205.92,205.86,23.59206874]
[1739200647683,13.59206874,205.91,205.86,10.0]
[1739200647878,13.59206874,205.89,205.86,20.0]
[1739200648088,0.91088325,205.88,205.86,20.0]
[1739200648287,13.59206874,205.87,205.86,20.0]
[1739200648910,31.86131727,205.87,205.86,20.0]
[1739200649397,32.77233878,205.87,205.86,20.0]
[1739200649698,32.77233878,205.87,205.86,16.89605102]
[1739200649887,6.1517,205.85,205.84,30.063]
[1739200650199,34.95852557,205.85,205.84,21.723]
[1739200650408,34.95852557,205.85,205.84,16.904]
[1739200650772,34.95852557,205.85,205.84,11.566]
[1739200651080,39.81642557,205.85,205.84,5.338]
[1739200651471,39.81642557,205.85,205.81,0.063]
[1739200651676,47.00391727,205.82,205.81,0.063]
[1739200651882,47.91520011,205.82,205.81,0.063]
[1739200652779,54.00864635,205.82,205.81,0.063]
[1739200652987,52.77380011,205.82,205.81,0.063]
[1739200656103,52.77380011,205.82,205.81,0.0001]
[1739200656287,53.66554692,205.82,205.81,0.0001]
[1739200657600,53.66554692,205.82,205.81,10.0001]
[1739200658175,33.66554692,205.82,205.81,10.0001]
[1739200658497,32.75426408,205.82,205.81,10.0001]
[1739200659302,39.34241555,205.82,205.81,10.0001]
[1739200659502,39.34241555,205.82,205.81,20.0001]
[1739200660201,34.48381555,205.82,205.81,20.0001]
[1739200660375,0.89174681,205.82,205.81,20.0001]
[1739200661281,4.8579,205.85,205.81,20.0001]
[1739200661505,4.8579,205.86,205.81,20.0001]
[1739200661797,0.91096561,205.85,205.81,20.0001]
[1739200662178,13.59206874,205.84,205.81,20.0001]
[1739200662376,4.8586,205.82,205.81,20.0001]
[1739200662578,18.45066874,205.82,205.81,20.0001]
[1739200662809,32.75426408,205.82,205.81,13.7601]
[1739200662987,20.0,205.78,205.75,0.063]
[1739200663307,27.00391727,205.76,205.75,0.063]
[1739200663812,13.41184853,205.75,205.73,0.063]
[1739200664098,14.50367291,205.74,205.73,0.063]
[1739200664301,0.91160417,205.74,205.73,0.063]
[1739200664518,0.9114615,205.75,205.73,0.063]
[1739200664719,5.7716615,205.75,205.73,0.063]
[1739200665324,0.9114615,205.75,205.73,0.063]
[1739200666887,13.59206874,205.74,205.73,0.063]
[1739200667600,5.7716615,205.75,205.73,0.063]
[1739200667601,0.9114615,205.75,205.73,0.063]
[1739200667979,13.59206874,205.74,205.73,0.063]
[1739200668182,27.00391727,205.74,205.73,0.063]
[1739200668485,31.86441727,205.74,205.73,0.063]
[1739200668780,32.77609873,205.74,205.73,0.063]
[1739200669609,31.86441727,205.74,205.73,0.063]
[1739200669907,13.59206874,205.76,205.73,0.063]
[1739200670110,0.91146934,205.75,205.73,0.063]
[1739200670311,20.0,205.74,205.73,0.063]
[1739200670807,20.0,205.74,205.73,10.063]
[1739200671799,38.45256874,205.74,205.73,10.063]
[1739200672003,39.36408772,205.74,205.73,10.063]
[1739200672203,38.45256874,205.74,205.73,10.063]
[1739200672491,33.59206874,205.74,205.73,20.063]
[1739200672789,4.8602,205.76,205.73,20.063]
[1739200673020,1.80316478,205.78,205.73,20.063]
[1739200673187,20.25473352,205.78,205.73,20.063]
[1739200673384,13.59206874,205.76,205.73,20.063]
[1739200673588,0.91144722,205.75,205.73,19.663]
[1739200674223,33.59206874,205.74,205.73,19.663]
[1739200674514,34.50360913,205.74,205.73,19.663]
[1739200674690,39.36410913,205.74,205.73,19.663]
[1739200675195,52.77595766,205.74,205.73,19.663]
[1739200675812,52.77595766,205.74,205.73,10.103]
[1739200677508,52.77595766,205.74,205.73,3.863]
[1739200677710,19.95904853,205.73,205.66,0.063]
[1739200678029,13.59206874,205.67,205.66,0.063]
[1739200678396,14.50390572,205.69,205.66,0.063]
[1739200679016,14.50390572,205.69,205.66,10.063]
[1739200679313,0.91183698,205.69,205.66,10.063]
[1739200679698,0.91167929,205.7,205.66,10.063]
[1739200679998,5.77307929,205.7,205.66,10.063]
[1739200680209,0.91167929,205.7,205.66,10.063]
[1739200680401,0.89174681,205.72,205.66,14.9253]
[1739200680722,1.80331085,205.72,205.66,10.063]
[1739200681013,6.66421085,205.72,205.66,10.063]
[1739200681513,0.03,205.75,205.71,13.59206874]
[1739200682093,4.8903,205.75,205.69,13.59206874]
[1739200682306,0.91149175,205.74,205.69,13.59206874]
[1739200682504,4.8903,205.75,205.67,141.4723]
[1739200682505,0.03,205.75,205.71,13.59206874]
[1739200682917,4.8903,205.75,205.69,13.59206874]
[1739200683126,0.91149876,205.74,205.67,150.20226874]
[1739200683334,27.00391727,205.73,205.66,10.063]
[1739200683494,13.59206874,205.71,205.66,10.063]
[1739200683697,5.77319747,205.7,205.66,10.063]
[1739200684000,13.59206874,205.69,205.66,10.063]
[1739200684313,0.9118445,205.68,205.66,10.063]
[1739200684524,27.00391727,205.67,205.66,10.063]
[1739200685113,27.91591848,205.67,205.66,10.063]
[1739200685800,27.71308759,205.67,205.66,10.063]
[1739200686000,28.6048344,205.67,205.66,3.823]
[1739200686640,20.0,205.63,205.61,0.063]
[1739200686796,22.85116863,205.62,205.61,0.063]
[1739200687109,21.37830648,205.62,205.61,0.063]
[1739200687325,22.29047741,205.62,205.61,0.063]
[1739200687617,27.41304211,205.62,205.61,0.063]
[1739200687821,32.27634211,205.62,205.61,0.063]
[1739200688196,33.4770811,205.62,205.61,0.063]
[1739200688515,33.4770811,205.62,205.56,0.063]
[1739200688731,13.64970255,205.6,205.56,0.063]
[1739200688894,0.91225792,205.59,205.56,0.063]
[1739200689590,0.91225792,205.59,205.56,10.063]
[1739200690402,0.91216399,205.58,205.56,10.063]
[1739200690729,0.91216457,205.6,205.56,10.063]
[1739200691803,14.56186712,205.6,205.56,10.063]
[1739200692005,0.91216457,205.6,205.56,10.063]
[1739200692311,0.91216457,205.6,205.56,28.57730255]
[1739200692712,0.89174681,205.61,205.58,13.64970255]
[1739200692911,13.64970255,205.68,205.6,13.64970255]
[1739200693110,0.91184093,205.67,205.62,13.64970255]
[1739200693638,0.91184093,205.67,205.6,13.64970255]
[1739200693819,0.91184093,205.67,205.61,4.8635]
[1739200694133,0.91184093,205.67,205.62,13.64970255]
[1739200694333,0.9117898,205.69,205.62,13.64970255]
[1739200694633,0.9117898,205.69,205.62,23.64970255]
[1739200696542,5.7733898,205.69,205.62,28.51300255]
[1739200696840,13.64970255,205.68,205.62,20.0]
[1739200697140,0.91185406,205.67,205.62,20.0]
[1739200697336,0.91185406,205.67,205.62,38.51300255]
[1739200697533,0.91179513,205.69,205.62,38.51300255]
[1739200698231,13.64970255,205.68,205.62,20.0]
[1739200698410,0.91184064,205.67,205.62,20.0]
[1739200698604,0.91184064,205.67,205.62,38.51300255]
[1739200698814,0.91169941,205.72,205.66,13.64970255]
[1739200699048,30.18148687,205.73,205.68,13.64970255]
[1739200699344,30.18148687,205.73,205.7,13.64970255]
[1739200700343,0.91143626,205.72,205.66,153.51190255]
[1739200700741,31.09310371,205.73,205.68,13.64970255]
[1739200701322,35.95380371,205.73,205.68,13.64970255]
[1739200701715,13.41184853,205.71,205.64,13.64970255]
[1739200701916,13.64970255,205.66,205.62,20.0]
[1739200702222,0.9119254,205.65,205.62,20.0]
[1739200702420,27.06155108,205.64,205.57,1.5351]
[1739200702610,13.41184853,205.61,205.56,20.063]
[1739200702816,14.56185639,205.6,205.56,20.063]
[1739200703020,13.64970255,205.58,205.56,20.063]
[1739200703342,13.41184853,205.59,205.56,20.063]
[1739200703529,13.41184853,205.55,205.52,0.01300001]
[1739200703711,13.64970255,205.54,205.52,0.01300001]
[1739200704051,14.30359534,205.53,205.52,0.01300001]
[1739200704248,14.30359534,205.53,205.5,0.05600001]
[1739200704744,13.41184853,205.51,205.47,20.0]
[1739200704915,13.41184853,205.49,205.47,20.0]
[1739200705111,33.41184853,205.48,205.44,1.62514287]
[1739200705312,13.41184853,205.42,205.32,30.0]
[1739200705507,13.41184853,205.42,205.33,4.8701]
[1739200705730,0.89174681,205.47,205.36,4.8693]
[1739200705939,0.89174681,205.47,205.35,135.063]
[1739200705940,33.41184853,205.46,205.35,135.063]
[1739200706110,13.64970255,205.43,205.35,148.71270255]
[1739200707343,0.89174681,205.42,205.35,13.71270255]
[1739200707518,0.89174681,205.42,205.37,13.71270255]
[1739200707852,0.89174681,205.42,205.39,13.64970255]
[1739200708014,5.23196807,205.49,205.41,13.64970255]
[1739200708015,18.88167062,205.49,205.41,13.64970255]
[1739200708218,13.41184853,205.48,205.41,13.64970255]
[1739200708835,13.41184853,205.48,205.37,0.063]
[1739200708836,13.64970255,205.53,205.45,13.64970255]
[1739200709346,13.41184853,205.52,205.45,13.64970255]
[1739200709722,13.64970255,205.49,205.41,23.64970255]
[1739200709919,13.64970255,205.47,205.41,10.0]
[1739200710849,13.64970255,205.45,205.41,10.0]
[1739200711034,13.41184853,205.44,205.41,20.0]
[1739200711618,19.40834936,205.47,205.41,20.0]
[1739200712042,13.41184853,205.44,205.41,20.0]
[1739200712354,13.41184853,205.44,205.41,30.0]
[1739200713167,13.64970255,205.45,205.41,30.0]
[1739200713524,0.89174681,205.46,205.41,30.0]
[1739200713724,14.30359534,205.46,205.41,30.0]
[1739200714052,0.89174681,205.46,205.41,48.51790255]
[1739200714234,0.89174681,205.46,205.45,13.64970255]
[1739200714440,18.51530255,205.53,205.45,13.64970255]
[1739200714637,20.0,205.5,205.45,13.64970255]
[1739200715148,13.41184853,205.5,205.43,13.64970255]
[1739200715528,13.41184853,205.5,205.43,18.51740255]
[1739200715929,18.27804853,205.5,205.43,13.64970255]
[1739200716349,13.41184853,205.47,205.41,178.67970255]
[1739200716524,13.64970255,205.47,205.41,30.03]
[1739200716847,13.41184853,205.46,205.45,10.0]
[1739200717434,0.89174681,205.47,205.45,10.0]
[1739200718563,0.89174681,205.47,205.43,4.8677]
[1739200718854,13.41184853,205.52,205.45,13.64970255]
[1739200719651,4.8659,205.51,205.45,13.64970255]
[1739200719856,18.51560255,205.51,205.43,18.51740255]
[1739200720153,18.51560255,205.51,205.43,13.64970255]
[1739200720323,13.64970255,205.49,205.41,178.67970255]
[1739200720529,13.41184853,205.46,205.41,165.03]
[1739200720740,13.41184853,205.46,205.41,30.03]
[1739200721623,13.64970255,205.45,205.41,30.03]
[1739200721828,18.27914853,205.46,205.41,30.03]
[1739200722051,13.41184853,205.46,205.41,30.03]
[1739200722445,13.41184853,205.46,205.41,43.67970255]
[1739200722955,18.27904853,205.46,205.41,30.03]
[1739200723823,26.82159278,205.46,205.41,30.03]
[1739200724452,0.89174681,205.49,205.42,8.54254425]
[1739200724952,0.89174681,205.49,205.44,8.54254425]
[1739200726427,0.063,205.46,205.44,8.54254425]
[1739200726651,0.063,205.46,205.41,30.03]
[1739200727042,8.54254425,205.44,205.41,30.03]
[1739200727349,28.45089278,205.42,205.41,30.03]
[1739200727552,29.34263959,205.42,205.41,30.03]
[1739200728158,34.21063959,205.42,205.41,30.03]
[1739200728750,13.41184853,205.4,205.39,0.03]
[1739200728953,22.84613959,205.4,205.39,0.03]
[1739200729732,27.98228983,205.4,205.39,0.03]
[1739200730241,32.85078983,205.4,205.39,0.03]
[1739200734762,27.98228983,205.4,205.39,0.03]
[1739200735062,32.85078983,205.4,205.39,0.03]
[1739200737340,33.41184853,205.38,205.37,0.033]
[1739200737557,47.98228983,205.38,205.37,0.033]
[1739200739463,52.85128983,205.38,205.37,0.033]
[1739200740671,13.41184853,205.37,205.35,0.063]
[1739200740853,27.98228983,205.36,205.35,0.063]
[1739200741367,32.85168983,205.36,205.35,0.063]
[1739200743164,13.41184853,205.35,205.32,30.0]
[1739200743555,27.09054302,205.35,205.32,30.0]
[1739200744667,13.41184853,205.35,205.32,30.0]
[1739200745758,18.28154853,205.35,205.32,30.0]
[1739200745969,31.96024302,205.35,205.32,30.0]
[1739200746140,27.09054302,205.33,205.32,30.0]
[1739200747370,13.41184853,205.33,205.32,30.0]
[1739200747664,18.54839449,205.35,205.32,30.0]
[1739200748575,13.67869449,205.33,205.32,30.0]
[1739200749569,31.96074302,205.33,205.32,13.06235758]
[1739200749778,26.83651632,205.33,205.32,13.09235758]
[1739200750079,28.92424339,205.33,205.32,13.09235758]
[1739200750772,28.92424339,205.33,205.32,5.758e-05]
[1739200751442,37.71074339,205.33,205.32,5.758e-05]
[1739200751977,36.71074339,205.33,205.32,5.758e-05]
[1739200752177,33.99146313,205.33,205.32,5.758e-05]
[1739200753073,27.72826313,205.33,205.32,5.758e-05]
[1739200755468,58.72826313,205.33,205.32,5.758e-05]
[1739200755661,21.96631632,205.24,205.23,0.03]
[1739200756671,13.41184853,205.23,205.18,0.03]
[1739200756881,21.96631632,205.19,205.18,0.03]
[1739200757249,20.0,205.15,205.14,0.03]
[1739200757456,42.85806313,205.15,205.14,0.03]
[1739200757656,47.73246313,205.15,205.14,0.03]
[1739200757868,0.89174681,205.15,205.14,0.03]
[1739200758284,14.30359534,205.15,205.14,0.03]
[1739200758774,22.85806313,205.15,205.14,0.03]
[1739200759357,14.30359534,205.15,205.14,0.03]
[1739200759561,22.85806313,205.15,205.14,0.03]
[1739200761980,14.30359534,205.15,205.14,0.03]
[1739200763087,0.89174681,205.15,205.14,0.03]
[1739200764770,14.30359534,205.15,205.14,0.03]
[1739200764978,22.85806313,205.15,205.14,0.03]
[1739200765168,27.73246313,205.15,205.14,0.03]
[1739200765782,32.89136996,205.15,205.14,0.03]
[1739200767876,28.01696996,205.15,205.14,0.03]
[1739200768084,14.30359534,205.15,205.14,0.03]
[1739200769478,28.01696996,205.15,205.14,0.03]
[1739200769673,32.89136996,205.15,205.14,0.03]
[1739200771488,20.0,205.12,205.11,0.03]
[1739200771690,48.01696996,205.12,205.11,0.03]
[1739200772184,52.89206996,205.12,205.11,0.03]
[1739200776605,14.30359534,205.12,205.11,0.03]
[1739200776903,0.89174681,205.12,205.11,0.03]
[1739200777699,13.77637462,205.18,205.11,13.74337462]
[1739200777990,13.41184853,205.17,205.11,13.74337462]
[1739200778488,0.95474681,205.18,205.15,13.71337462]
[1739200778673,0.063,205.18,205.17,13.71337462]
[1739200779897,0.063,205.18,205.17,22.34307462]
[1739200780193,0.063,205.18,205.17,157.34307462]
[1739200780693,13.41184853,205.3,205.18,17.0581]
[1739200780904,7.37761889,205.31,205.28,13.71337462]
[1739200781401,13.41184853,205.3,205.28,13.71337462]
[1739200781895,13.41184853,205.31,205.28,13.71337462]
[1739200782095,13.41184853,205.33,205.28,13.71337462]
[1739200782303,14.30359534,205.33,205.28,13.71337462]
[1739200782770,14.30359534,205.33,205.26,13.71337462]
[1739200782971,13.41184853,205.31,205.24,13.71337462]
[1739200783388,13.71337462,205.3,205.22,13.71337462]
[1739200783588,14.30359534,205.29,205.22,13.71337462]
[1739200784584,20.0,205.26,205.22,13.71337462]
[1739200784904,27.12522315,205.24,205.15,13.71337462]
[1739200785401,28.01696996,205.24,205.15,13.71337462]
[1739200786703,13.41184853,205.22,205.15,13.71337462]
[1739200786995,13.41184853,205.22,205.19,13.71337462]
[1739200787999,5.76414681,205.24,205.21,13.71337462]
[1739200788000,0.89174681,205.24,205.21,13.71337462]
[1739200788407,14.30359534,205.24,205.21,13.71337462]
[1739200788703,13.41184853,205.12,204.98,13.71337462]
[1739200788876,13.41184853,205.05,204.98,13.71337462]
[1739200789075,14.30359534,205.05,204.96,13.71337462]
[1739200789285,0.89174681,205.05,205.02,13.71337462]
[1739200791601,0.89174681,205.05,205.04,13.71337462]
[1739200791795,13.71337462,205.15,205.04,13.71337462]
[1739200791998,12.1858,205.16,205.06,13.71337462]
[1739200791999,27.12522315,205.13,205.06,13.71337462]
[1739200792308,13.41184853,205.11,205.06,13.71337462]
[1739200795019,13.41184853,205.11,204.85,312.0]
[1739200795020,33.41184853,205.09,205.02,0.03]
[1739200795306,13.41184853,205.07,205.02,0.03]
[1739200795498,0.89174681,205.06,205.02,0.03]
[1739200796090,0.89174681,205.06,205.02,13.74337462]
[1739200796802,0.89174681,205.06,205.03,13.71337462]
[1739200797208,13.71337462,205.14,205.05,13.71337462]
[1739200797504,13.41184853,205.12,205.07,13.71337462]
[1739200797707,13.41184853,205.12,205.05,13.71337462]
[1739200797905,27.12522315,205.1,205.03,13.71337462]
[1739200798080,13.41184853,205.08,205.02,0.03]
[1739200798505,13.41184853,205.07,205.02,0.03]
[1739200799088,32.00172315,205.07,205.02,0.03]
[1739200799399,0.89174681,205.07,205.04,13.71337462]
[1739200800003,0.89174681,205.07,205.06,13.71337462]
[1739200800598,0.89174681,205.07,205.04,13.71337462]
[1739200801288,13.41184853,205.06,205.02,13.74337462]
[1739200802600,5.76814681,205.07,205.02,13.74337462]
[1739200802601,0.89174681,205.07,205.05,13.71337462]
[1739200804895,0.89174681,205.07,205.02,13.74337462]
[1739200804896,13.41184853,205.06,205.02,13.74337462]
[1739200805097,0.89174681,205.05,205.02,0.03]
[1739200805306,0.89174681,205.05,205.02,13.74337462]
[1739200805496,0.89174681,205.05,205.04,13.71337462]
[1739200805694,0.89174681,205.05,205.04,18.59037462]
[1739200805910,13.71337462,205.15,205.04,18.59037462]
[1739200806113,13.41184853,205.11,205.07,13.71337462]
[1739200807022,20.0,205.1,205.07,13.71337462]
[1739200807200,13.41184853,205.12,205.07,13.71337462]
[1739200807521,0.89174681,205.14,205.11,13.71337462]
[1739200807692,0.89174681,205.14,205.13,13.71337462]
[1739200808091,19.47982143,205.14,205.06,13.71337462]
[1739200808315,13.41184853,205.13,205.06,13.71337462]
[1739200808520,13.41184853,205.13,205.08,13.71337462]
[1739200808911,13.41184853,205.11,205.05,13.71337462]
[1739200809095,13.41184853,205.09,205.03,13.71337462]
[1739200809296,13.71337462,205.08,205.0,13.71337462]
[1739200809625,13.41184853,205.03,204.98,13.71337462]
[1739200809823,13.71337462,205.06,204.98,13.71337462]
[1739200809824,13.41184853,205.05,204.98,13.71337462]
[1739200810115,13.41184853,205.05,204.97,13.71337462]
[1739200810116,33.41184853,205.03,204.97,13.71337462]
[1739200810325,34.30359534,205.03,204.97,13.71337462]
[1739200810906,34.30359534,205.03,204.98,13.71337462]
[1739200811513,34.30359534,205.03,204.99,13.71337462]
[1739200812019,39.18089534,205.03,204.98,13.71337462]
[1739200812494,19.18089534,205.03,204.98,13.71337462]
[1739200812895,34.30359534,205.03,204.98,13.71337462]
[1739200813803,34.30359534,205.03,205.0,13.71337462]
[1739200814205,14.30359534,205.03,205.01,13.71337462]
[1739200814408,0.89174681,205.03,205.01,13.71337462]
[1739200814617,20.0,205.05,205.02,13.74337462]
[1739200814819,13.41184853,205.06,205.04,13.71337462]
[1739200815021,20.25487462,205.13,205.05,13.71337462]
[1739200815322,0.89174681,205.12,205.07,13.71337462]
[1739200815709,13.41184853,205.11,205.07,13.71337462]
[1739200816023,14.30359534,205.11,205.07,13.71337462]
[1739200817007,13.71337462,205.08,205.02,0.03]
[1739200817205,13.41184853,205.06,205.02,0.03]
[1739200817405,13.41184853,205.04,205.02,0.03]
[1739200817621,14.30359534,205.04,205.02,0.03]
[1739200818025,14.30359534,205.04,205.02,13.74337462]
[1739200821109,0.89174681,205.04,205.03,13.71337462]
[1739200821525,0.063,205.08,205.03,13.71337462]
[1739200821808,0.063,205.08,205.07,13.71337462]
[1739200825623,0.063,205.08,205.07,18.58967462]
[1739200827534,0.063,205.08,205.05,13.71337462]
[1739200827741,0.063,205.08,205.05,8.57243888]
[1739200828517,0.063,205.08,205.07,8.57243888]
[1739200829740,0.063,205.08,205.07,13.44873888]
[1739200830534,0.063,205.08,205.07,8.57243888]
[1739200831232,0.063,205.08,205.07,13.44873888]
[1739200831639,0.0001,205.08,205.07,13.44873888]
[1739200831831,0.063,205.22,205.07,26.63963888]
[1739200832134,13.41184853,205.2,205.18,8.57243888]
[1739200833240,13.41184853,205.2,205.16,8.57243888]
[1739200833547,19.17689534,205.2,205.16,8.57243888]
[1739200833920,0.89174681,205.19,205.14,8.57243888]
[1739200835229,5.76524681,205.19,205.14,8.57243888]
[1739200835542,20.89174681,205.19,205.18,8.57243888]
[1739200835839,34.30359534,205.19,205.18,8.57243888]
[1739200836045,14.30359534,205.19,205.18,8.57243888]
[1739200837123,14.30359534,205.19,205.16,8.57243888]
[1739200837430,13.41184853,205.18,205.16,8.57243888]
[1739200837744,13.41184853,205.18,205.14,8.57243888]
[1739200837935,13.41184853,205.18,205.12,8.57243888]
[1739200838132,0.89174681,205.17,205.12,8.57243888]
[1739200839051,0.89174681,205.17,205.14,8.57243888]
[1739200839233,33.41184853,205.15,205.14,8.57243888]
[1739200839427,13.41184853,205.14,205.12,8.57243888]
[1739200839631,13.41184853,205.14,205.1,8.57243888]
[1739200840224,13.41184853,205.14,205.12,8.57243888]
[1739200841124,0.89174681,205.17,205.12,13.44743888]
[1739200841325,0.89174681,205.17,205.16,8.57243888]
[1739200842431,0.89174681,205.17,205.14,8.57243888]
[1739200843247,13.41184853,205.16,205.12,8.57243888]
[1739200843437,14.30359534,205.16,205.12,8.57243888]
[1739200844454,0.89174681,205.15,205.1,8.57243888]
[1739200844843,13.41184853,205.13,205.1,8.57243888]
[1739200845234,13.41184853,205.13,205.12,8.57243888]
[1739200849027,18.28674853,205.13,205.1,8.57243888]
[1739200849228,13.41184853,205.11,205.08,0.03]
[1739200849462,33.41184853,205.09,205.08,0.03]
[1739200849661,34.30359534,205.09,205.08,0.03]
[1739200850929,39.17949534,205.09,205.08,0.03]
[1739200851330,19.17949534,205.09,205.08,0.03]
[1739200851741,19.17949534,205.09,205.08,8.60243888]
[1739200851742,0.89174681,205.09,205.08,8.60243888]